bitfinex/quotes_BTCUSD_20241226
["timestamp","ask_amount","ask_price","bid_price","bid_amount"]
[1735228128761,0.00100049,96074.0,96073.0,0.34420373]
[1735228128967,4.9e-07,96074.0,96073.0,0.33520373]
[1735228129343,0.00100049,96074.0,96073.0,0.34220373]
[1735228129723,0.00100049,96074.0,96073.0,0.23121741]
[1735228129929,0.00200049,96074.0,96073.0,0.01]
[1735228130367,0.00200049,96074.0,96073.0,0.008]
[1735228130781,0.00200049,96074.0,96073.0,0.011]
[1735228131189,0.00200049,96074.0,96062.0,0.02069817]
[1735228131190,4.9e-07,96074.0,96065.0,0.20819]
[1735228131393,4.9e-07,96074.0,96073.0,0.009]
[1735228131597,4.9e-07,96074.0,96062.0,0.02069817]
[1735228131956,4.9e-07,96074.0,96063.0,0.416392]
[1735228132518,4.9e-07,96074.0,96063.0,0.208196]
[1735228133244,0.02081664,96074.0,96063.0,0.208196]
[1735228134105,0.02081664,96074.0,96060.0,0.208201]
[1735228134521,0.02081664,96074.0,96063.0,0.001]
[1735228134522,4.9e-07,96074.0,96063.0,0.001]
[1735228134931,0.15000049,96074.0,96057.0,0.208208]
[1735228135138,0.15000049,96074.0,96063.0,0.001]
[1735228135282,0.15000049,96074.0,96057.0,0.208208]
[1735228135696,0.15000049,96074.0,96063.0,0.001]
[1735228135912,0.05663345,96073.0,96063.0,0.001]
[1735228137061,8.599e-05,96074.0,96063.0,0.001]
[1735228137263,8.599e-05,96074.0,96057.0,0.208208]
[1735228137674,8.599e-05,96074.0,96057.0,0.209208]
[1735228137848,0.15,96073.0,96057.0,0.209208]
[1735228138060,0.15,96073.0,96057.0,0.208208]
[1735228138281,0.15,96073.0,96063.0,0.001]
[1735228138477,0.056642,96072.0,96057.0,0.208208]
[1735228139109,0.208184,96069.0,96052.0,0.000171]
[1735228139311,0.15,96057.0,96052.0,0.000171]
[1735228139487,0.15,96054.0,96052.0,0.000171]
[1735228139700,0.40412882,96053.0,96052.0,0.000171]
[1735228139901,0.54070432,96053.0,96052.0,0.000171]
[1735228140681,0.2285,96053.0,96052.0,0.000171]
[1735228140880,0.0785,96053.0,96052.0,0.000171]
[1735228141154,0.440718,96053.0,96052.0,0.000171]
[1735228141387,0.436718,96053.0,96052.0,0.000171]
[1735228141581,0.5052105,96053.0,96052.0,0.000171]
[1735228141759,0.60919682,96053.0,96052.0,0.000171]
[1735228142178,0.0865,96053.0,96052.0,0.000171]
[1735228142604,0.008,96053.0,96052.0,0.000171]
[1735228143359,0.0785,96063.0,96052.0,0.000171]
[1735228143766,0.004,96053.0,96052.0,0.000171]
[1735228144171,0.004,96053.0,96052.0,0.10415732]
[1735228144425,0.006,96053.0,96052.0,0.15621815]
[1735228144584,0.006,96053.0,96052.0,0.10415732]
[1735228144990,0.006,96053.0,96052.0,0.12554705]
[1735228145163,0.006,96053.0,96052.0,0.24854705]
[1735228145387,0.006,96053.0,96052.0,0.24750618]
[1735228145588,0.006,96053.0,96052.0,0.14750618]
[1735228145862,0.006,96053.0,96052.0,0.12554694]
[1735228146055,0.006,96053.0,96052.0,0.12554706]
[1735228146268,0.006,96053.0,96052.0,0.12754706]
[1735228146402,8.55e-05,96086.0,96052.0,0.12754706]
[1735228146606,8.55e-05,96086.0,96053.0,0.31324512]
[1735228146812,8.55e-05,96086.0,96053.0,0.10398632]
[1735228147025,8.55e-05,96086.0,96065.0,0.20819]
[1735228147237,8.55e-05,96086.0,96069.0,0.208182]
[1735228147890,0.00208599,96074.0,96069.0,0.208182]
[1735228148470,0.00408599,96074.0,96069.0,0.208182]
[1735228150099,0.00358599,96074.0,96069.0,0.208182]
[1735228150964,0.00358599,96074.0,96055.0,0.208213]
[1735228151108,0.0822,96073.0,96059.0,0.208204]
[1735228152127,0.0822,96073.0,96067.0,0.208186]
[1735228152324,0.00358599,96074.0,96068.0,0.10398632]
[1735228152688,0.00358599,96074.0,96056.0,0.02287329]
[1735228152896,0.00358599,96074.0,96069.0,0.208181]
[1735228153104,0.00358599,96074.0,96071.0,0.208179]
[1735228153237,0.00358599,96074.0,96060.0,0.1954022]
[1735228153238,0.0822,96085.0,96072.0,0.10502712]
[1735228153448,0.0823394,96085.0,96082.0,0.208155]
[1735228153652,0.0001394,96085.0,96082.0,0.208155]
[1735228154054,0.0001394,96085.0,96082.0,0.41631]
[1735228154298,0.0001394,96085.0,96082.0,0.208155]
[1735228154538,0.0001394,96085.0,96078.0,0.208162]
[1735228154718,0.0001394,96085.0,96075.0,0.20817]
[1735228154928,0.0001394,96085.0,96069.0,0.208182]
[1735228155161,0.04165009,96084.0,96057.0,0.02396796]
[1735228155307,0.2322,96083.0,96062.0,0.02121195]
[1735228155508,0.2322,96083.0,96065.0,0.208191]
[1735228155861,0.208155,96082.0,96063.0,0.208196]
[1735228156585,0.045,96080.0,96056.0,0.208211]
[1735228156794,0.15,96073.0,96056.0,0.208211]
[1735228156998,0.15,96073.0,96051.0,0.02050683]
[1735228157213,0.15,96073.0,96058.0,0.208205]
[1735228157793,0.15,96073.0,96050.0,0.208224]
[1735228157794,0.2322,96071.0,96050.0,0.208224]
[1735228157993,0.2322,96071.0,96056.0,0.003]
[1735228158560,0.2322,96071.0,96058.0,0.003]
[1735228159249,0.2322,96071.0,96058.0,0.211205]
[1735228159455,0.0822,96071.0,96058.0,0.003]
[1735228159664,0.15,96081.0,96075.0,0.20817]
[1735228159872,0.2435206,96082.0,96079.0,0.208161]
[1735228160078,0.0935206,96082.0,96079.0,0.208161]
[1735228160295,0.0001394,96085.0,96079.0,0.31214732]
[1735228160516,0.0001394,96085.0,96084.0,0.208151]
[1735228161357,0.0001394,96085.0,96084.0,0.30913732]
[1735228163382,0.0001394,96085.0,96084.0,0.41013732]
[1735228164410,0.0001394,96085.0,96084.0,0.41113732]
[1735228164631,0.0001394,96085.0,96084.0,0.41013732]
[1735228165010,0.0001394,96085.0,96084.0,0.49985024]
[1735228165213,0.0001394,96085.0,96084.0,0.49885024]
[1735228165789,0.0001394,96085.0,96084.0,0.50185024]
[1735228165999,0.0001394,96085.0,96084.0,0.41213732]
[1735228166526,0.0001394,96085.0,96084.0,0.42013732]
[1735228166984,0.0001394,96085.0,96084.0,0.42233666]
[1735228167593,0.0001394,96085.0,96084.0,0.43033666]
[1735228168663,0.15,96117.0,96100.0,0.208116]
[1735228168867,0.0002,96129.0,96100.0,0.36372662]
[1735228169071,0.0002,96129.0,96100.0,0.31210232]
[1735228169279,0.208062,96126.0,96094.0,0.416255]
[1735228169486,0.0766,96102.0,96095.0,0.10398632]
[1735228169683,0.0766,96102.0,96084.0,0.01819934]
[1735228169684,0.0766,96102.0,96086.0,0.416292]
[1735228169950,0.0766,96102.0,96090.0,0.208136]
[1735228170166,0.0766,96102.0,96100.0,0.003]
[1735228170345,0.0766,96102.0,96095.0,0.208127]
[1735228170573,0.0766,96102.0,96099.0,0.208116]
[1735228170891,0.0766,96102.0,96100.0,0.001]
[1735228171305,0.0766,96102.0,96099.0,0.208116]
[1735228171949,0.0766,96102.0,96096.0,0.208125]
[1735228172159,0.0766,96102.0,96090.0,0.001]
[1735228172357,0.01260007,96100.0,96090.0,0.001]
[1735228172758,0.01260007,96100.0,96099.0,0.001]
[1735228173096,0.0766,96102.0,96087.0,0.208144]
[1735228174025,0.15,96110.0,96088.0,0.10502692]
[1735228174239,0.0823712,96111.0,96096.0,0.208123]
[1735228174445,0.0823712,96111.0,96098.0,0.20812]
[1735228174866,0.0823712,96111.0,96096.0,0.208123]
[1735228175082,0.0001712,96111.0,96100.0,0.12698632]
[1735228175287,0.0001712,96111.0,96110.0,0.208094]
[1735228175503,0.0001712,96111.0,96110.0,0.43508032]
[1735228175718,2e-07,96115.0,96114.0,0.1]
[1735228175954,0.0935206,96137.0,96128.0,0.208055]
[1735228176165,0.00035458,96129.0,96128.0,0.34049682]
[1735228177174,0.00035458,96129.0,96128.0,0.34849682]
[1735228177982,0.00035458,96129.0,96128.0,0.35749682]
[1735228178167,0.00035458,96129.0,96128.0,0.36049682]
[1735228178786,0.00035458,96129.0,96128.0,0.33204132]
[1735228180742,0.00035458,96129.0,96128.0,0.32904132]
[1735228181534,0.00035458,96129.0,96128.0,0.33204132]
[1735228181884,0.00035458,96129.0,96128.0,0.3533507]
[1735228182095,0.00035458,96129.0,96128.0,0.3363507]
[1735228182515,0.00035458,96129.0,96128.0,0.3453507]
[1735228182903,0.00035458,96129.0,96128.0,0.3543507]
[1735228183326,0.00035458,96129.0,96128.0,0.3513507]
[1735228183911,0.00035458,96129.0,96128.0,0.3543507]
[1735228184121,0.00035458,96129.0,96128.0,0.41029237]
[1735228184327,0.00035458,96129.0,96128.0,0.42086126]
[1735228184498,0.00035458,96129.0,96128.0,0.54386126]
[1735228184700,5.8e-07,96129.0,96128.0,1.29904226]
[1735228184941,1.8e-07,96129.0,96128.0,1.29604226]
[1735228185194,1.8e-07,96145.0,96144.0,0.308021]
[1735228185343,1.8e-07,96145.0,96144.0,0.82411088]
[1735228185542,5.3e-07,96145.0,96144.0,0.85161138]
[1735228185741,5.3e-07,96145.0,96144.0,1.27989238]
[1735228186141,5.3e-07,96145.0,96144.0,1.25239188]
[1735228186901,5.3e-07,96145.0,96144.0,1.15239188]
[1735228187130,5.3e-07,96145.0,96144.0,1.27639188]
[1735228187483,5.3e-07,96145.0,96144.0,1.28239188]
[1735228188330,5.3e-07,96145.0,96144.0,1.26739188]
[1735228188558,5.3e-07,96145.0,96144.0,1.27639188]
[1735228188708,5.3e-07,96145.0,96144.0,1.29697267]
[1735228188909,5.3e-07,96145.0,96144.0,1.35029218]
[1735228189095,5.3e-07,96145.0,96144.0,1.35929218]
[1735228189291,5.3e-07,96145.0,96144.0,1.34687267]
[1735228189503,5.3e-07,96145.0,96144.0,1.37213897]
[1735228189706,5.3e-07,96145.0,96144.0,1.38913897]
[1735228189901,0.015,96160.0,96159.0,0.457596]
[1735228190103,0.01551498,96160.0,96159.0,0.64052399]
[1735228191305,0.01551498,96160.0,96159.0,0.58458232]
[1735228191527,0.01551498,96160.0,96159.0,0.59158232]
[1735228192156,0.01551498,96160.0,96159.0,0.60058232]
[1735228192385,0.01551498,96160.0,96159.0,0.59158232]
[1735228192780,0.01551498,96160.0,96159.0,0.59358232]
[1735228192984,0.01551498,96160.0,96159.0,0.31197432]
[1735228193139,0.01551498,96160.0,96159.0,0.31897432]
[1735228193344,0.01551498,96160.0,96159.0,0.32797432]
[1735228193553,0.01551498,96160.0,96159.0,0.32097432]
[1735228193757,0.01551498,96160.0,96159.0,0.32597432]
[1735228194347,0.01551498,96160.0,96159.0,0.32097432]
[1735228194564,0.01551498,96160.0,96159.0,0.31197432]
[1735228194767,0.01551498,96160.0,96159.0,0.32397432]
[1735228195002,0.01551498,96160.0,96159.0,0.37717175]
[1735228195411,0.01551498,96160.0,96159.0,0.50595267]
[1735228195637,0.01551498,96160.0,96159.0,0.49695267]
[1735228195843,0.01551498,96160.0,96159.0,0.49395267]
[1735228196040,0.01551498,96160.0,96159.0,0.34914724]
[1735228196257,0.01551498,96160.0,96159.0,0.34414724]
[1735228196621,0.01551498,96160.0,96159.0,0.35014724]
[1735228197021,0.01551498,96160.0,96159.0,0.35514724]
[1735228197232,0.01560048,96160.0,96159.0,0.35514724]
[1735228197571,0.01560048,96160.0,96159.0,0.35014724]
[1735228197702,0.01560048,96160.0,96159.0,0.33814724]
[1735228198115,0.01560048,96160.0,96159.0,0.35774786]
[1735228198532,0.01560048,96160.0,96159.0,0.46635586]
[1735228198955,0.01560048,96160.0,96159.0,0.44335586]
[1735228199158,0.01560048,96160.0,96159.0,0.45135586]
[1735228199378,0.01560048,96160.0,96159.0,0.41768345]
[1735228199589,0.01560048,96160.0,96159.0,0.34874786]
[1735228200021,0.01560048,96160.0,96159.0,0.34374786]
[1735228200406,0.01560048,96160.0,96159.0,0.34674786]
[1735228200826,0.01560048,96160.0,96159.0,0.34374786]
[1735228201334,0.01560048,96160.0,96159.0,0.45235586]
[1735228201537,0.01560048,96160.0,96159.0,0.54139145]
[1735228201743,0.01560048,96160.0,96159.0,0.53239145]
[1735228201945,0.01560048,96160.0,96159.0,0.44178345]
[1735228202154,0.01560048,96160.0,96159.0,0.54139145]
[1735228202362,0.01560048,96160.0,96159.0,0.53539145]
[1735228202575,0.01560048,96160.0,96159.0,0.54439145]
[1735228202825,0.01560048,96160.0,96159.0,0.54139145]
[1735228202997,0.01560048,96160.0,96159.0,0.54639145]
[1735228204052,4.8e-07,96160.0,96159.0,0.96967245]
[1735228204514,8e-08,96171.0,96170.0,0.099608]
[1735228204726,2.8e-07,96183.0,96182.0,0.307547]
[1735228204898,2.8e-07,96183.0,96182.0,0.41153332]
[1735228205117,0.00015471,96183.0,96182.0,0.41153332]
[1735228205475,0.00015471,96183.0,96182.0,0.49648095]
[1735228206082,7.1e-07,96183.0,96182.0,0.64648095]
[1735228206275,7.1e-07,96183.0,96182.0,0.64848095]
[1735228206465,7.1e-07,96183.0,96182.0,0.65548095]
[1735228206639,7.1e-07,96186.0,96185.0,0.099608]
[1735228206863,7.1e-07,96186.0,96185.0,0.28383112]
[1735228207077,7.1e-07,96186.0,96185.0,0.28279192]
[1735228208563,7.1e-07,96186.0,96185.0,0.29179192]
[1735228208710,7.1e-07,96186.0,96185.0,0.29679192]
[1735228208921,7.1e-07,96186.0,96185.0,0.28779192]
[1735228209126,7.1e-07,96186.0,96185.0,0.29179192]
[1735228209564,7.1e-07,96186.0,96185.0,0.29779192]
[1735228210020,7.1e-07,96186.0,96185.0,0.72607292]
[1735228210222,7.1e-07,96186.0,96185.0,0.74732201]
[1735228211422,7.1e-07,96186.0,96185.0,0.69112441]
[1735228211978,7.1e-07,96186.0,96185.0,0.68512441]
[1735228212302,7.1e-07,96186.0,96185.0,0.69112441]
[1735228212507,7.1e-07,96186.0,96185.0,0.69257388]
[1735228212909,7.1e-07,96186.0,96185.0,0.69557388]
[1735228213091,7.1e-07,96186.0,96185.0,0.8055602]
[1735228214308,7.1e-07,96186.0,96185.0,0.70157388]
[1735228216057,7.1e-07,96186.0,96185.0,0.68657388]
[1735228216472,7.1e-07,96186.0,96185.0,0.70157388]
[1735228216667,8.56e-05,96198.0,96196.0,0.099608]
[1735228216873,8.56e-05,96198.0,96197.0,0.31293158]
[1735228217082,8.56e-05,96198.0,96197.0,0.41772898]
[1735228217721,6e-07,96198.0,96197.0,1.09561798]
[1735228218552,0.079,96218.0,96208.0,0.207882]
[1735228218786,0.0455856,96226.0,96208.0,0.31186832]
[1735228218990,8.56e-05,96226.0,96208.0,0.43447632]
[1735228219190,8.56e-05,96226.0,96208.0,0.46978489]
[1735228219463,8.56e-05,96226.0,96208.0,0.34717689]
[1735228219747,0.0455,96219.0,96208.0,0.32086832]
[1735228220905,0.0455,96219.0,96208.0,0.31186832]
[1735228221315,0.0455,96219.0,96208.0,0.32086832]
[1735228221522,0.0455,96219.0,96208.0,0.31186832]
[1735228221700,0.0455,96219.0,96208.0,0.31486832]
[1735228221904,0.0455,96219.0,96208.0,0.32386832]
[1735228222112,0.0455,96219.0,96208.0,0.32086832]
[1735228222471,0.0455,96219.0,96208.0,0.33286832]
[1735228222682,0.0455,96219.0,96208.0,0.42068901]
[1735228222883,0.0455,96219.0,96208.0,0.41768901]
[1735228223613,8.56e-05,96226.0,96208.0,0.41768901]
[1735228223784,8.56e-05,96226.0,96208.0,0.44368901]
[1735228224127,8.56e-05,96226.0,96208.0,0.55229701]
[1735228224128,1e-06,96209.0,96208.0,0.55229701]
[1735228224766,1e-06,96209.0,96208.0,0.56129701]
[1735228224970,1e-06,96209.0,96208.0,0.55229701]
[1735228225195,1e-06,96209.0,96208.0,0.55829701]
[1735228225389,1e-06,96209.0,96208.0,0.45268901]
[1735228225595,1e-06,96209.0,96208.0,0.55229701]
[1735228225803,1e-06,96209.0,96208.0,0.55829701]
[1735228225945,1e-06,96209.0,96208.0,0.42668901]
[1735228226150,1e-06,96209.0,96208.0,0.33586338]
[1735228226578,1e-06,96209.0,96208.0,0.33286338]
[1735228226950,1e-06,96209.0,96208.0,0.33586338]
[1735228227153,1e-06,96209.0,96208.0,0.34624206]
[1735228227354,1e-06,96209.0,96208.0,0.35524206]
[1735228228191,1e-06,96209.0,96208.0,0.34324206]
[1735228228390,1e-06,96209.0,96208.0,0.34624206]
[1735228229007,1e-06,96209.0,96208.0,0.35224206]
[1735228229250,1e-06,96209.0,96208.0,0.34624206]
[1735228229875,1e-06,96209.0,96208.0,0.34324206]
[1735228230118,1e-06,96209.0,96208.0,0.34624206]
[1735228230592,1e-06,96209.0,96208.0,0.35524206]
[1735228230593,0.125901,96209.0,96208.0,0.35524206]
[1735228230829,0.125901,96209.0,96208.0,0.34486338]
[1735228231546,0.125901,96209.0,96208.0,0.34981338]
[1735228231800,0.125901,96209.0,96208.0,0.34381338]
[1735228232037,0.125901,96209.0,96208.0,0.35281338]
[1735228232286,0.125901,96209.0,96208.0,0.34981338]
[1735228232491,0.125901,96209.0,96208.0,0.33381338]
[1735228232892,0.125901,96209.0,96208.0,0.33181338]
[1735228233339,0.125901,96209.0,96208.0,0.33481338]
[1735228233546,1e-06,96209.0,96208.0,0.40957272]
[1735228233750,1e-06,96209.0,96208.0,0.41657272]
[1735228233978,1e-06,96209.0,96208.0,0.33481338]
[1735228234518,1e-06,96209.0,96208.0,0.33181338]
[1735228234714,8.65e-05,96209.0,96208.0,0.33481338]
[1735228234945,8.65e-05,96209.0,96208.0,0.34381338]
[1735228235195,8.65e-05,96209.0,96208.0,0.33481338]
[1735228235371,8.65e-05,96209.0,96208.0,0.34081338]
[1735228235576,8.65e-05,96209.0,96208.0,0.34381338]
[1735228236367,8.65e-05,96209.0,96208.0,0.42080715]
[1735228236582,8.65e-05,96209.0,96208.0,0.34381338]
[1735228236759,8.65e-05,96209.0,96208.0,0.33481338]
[1735228236956,8.65e-05,96209.0,96208.0,0.34381338]
[1735228237461,8.65e-05,96209.0,96208.0,0.34081338]
[1735228237661,8.65e-05,96209.0,96208.0,0.4447997]
[1735228237983,8.65e-05,96209.0,96208.0,0.4387997]
[1735228238183,8.65e-05,96209.0,96208.0,0.4477997]
[1735228238529,8.65e-05,96209.0,96208.0,0.4677997]
[1735228238810,8.65e-05,96209.0,96208.0,0.4797997]
[1735228239213,8.65e-05,96209.0,96208.0,0.4767997]
[1735228239418,8.65e-05,96209.0,96208.0,0.51475122]
[1735228239595,5e-07,96209.0,96208.0,0.51475122]
[1735228240201,5e-07,96209.0,96208.0,0.94303222]
[1735228240404,5e-07,96209.0,96208.0,0.92503222]
[1735228240612,5e-07,96209.0,96208.0,0.92803222]
[1735228240809,5e-07,96209.0,96208.0,0.91903222]
[1735228241159,5e-07,96209.0,96208.0,0.92503222]
[1735228241543,5e-07,96209.0,96208.0,0.92803222]
[1735228241750,5e-07,96209.0,96208.0,0.93503222]
[1735228242460,5e-07,96209.0,96208.0,0.92803222]
[1735228242656,5e-07,96209.0,96208.0,0.93503222]
[1735228243262,5e-07,96209.0,96208.0,0.92603222]
[1735228243465,5e-07,96209.0,96208.0,0.8940807]
[1735228243690,5e-07,96209.0,96208.0,0.77609438]
[1735228243893,5e-07,96209.0,96208.0,0.76909438]
[1735228244094,5e-07,96209.0,96208.0,0.77609438]
[1735228244246,5e-07,96209.0,96208.0,0.78509438]
[1735228244451,5e-07,96209.0,96208.0,0.77609438]
[1735228244643,5e-07,96209.0,96208.0,0.76909438]
[1735228244855,5e-07,96209.0,96208.0,0.77809438]
[1735228245055,5e-07,96209.0,96208.0,0.76909438]
[1735228245257,5e-07,96209.0,96208.0,0.77809438]
[1735228245515,5e-07,96209.0,96208.0,0.78509438]
[1735228245714,5e-07,96209.0,96208.0,0.78925638]
[1735228246113,5e-07,96209.0,96208.0,0.36097538]
[1735228246325,5e-07,96209.0,96208.0,0.46268535]
[1735228246536,5e-07,96209.0,96208.0,0.44468535]
[1735228246757,5e-07,96209.0,96208.0,0.34297538]
[1735228246991,5e-07,96209.0,96208.0,0.35197538]
[1735228247186,5e-07,96209.0,96208.0,0.34497538]
[1735228247398,5e-07,96209.0,96208.0,0.35197538]
[1735228247621,5e-07,96209.0,96208.0,0.34297538]
[1735228247862,0.1259005,96209.0,96208.0,0.34098438]
[1735228248112,0.1262925,96209.0,96208.0,0.009171]
[1735228248341,0.13892175,96209.0,96208.0,0.015171]
[1735228248552,0.13892175,96209.0,96208.0,0.024171]
[1735228248767,0.13892175,96209.0,96208.0,0.018171]
[1735228248976,0.2762925,96209.0,96208.0,0.023171]
[1735228249798,0.2762925,96209.0,96208.0,0.005171]
[1735228250014,0.2762925,96209.0,96208.0,0.014171]
[1735228250356,0.2762925,96209.0,96208.0,0.005171]
[1735228250671,0.2762925,96209.0,96208.0,0.010171]
[1735228250883,0.2762925,96209.0,96208.0,0.000171]
[1735228251316,0.2762925,96209.0,96208.0,0.008171]
[1735228251715,0.1259005,96209.0,96208.0,0.31703932]
[1735228251945,0.1279005,96209.0,96208.0,0.31703932]
[1735228253149,0.1262925,96209.0,96208.0,0.10415732]
[1735228253322,0.1272925,96209.0,96208.0,0.10415732]
[1735228253536,0.1272925,96209.0,96208.0,0.000171]
[1735228253754,0.1262925,96209.0,96208.0,0.000171]
[1735228253962,0.1262925,96209.0,96208.0,0.10415732]
[1735228254099,0.1259005,96209.0,96208.0,0.10415732]
[1735228254524,0.1269005,96209.0,96208.0,0.10415732]
[1735228255134,0.0787005,96209.0,96208.0,0.10415732]
[1735228255499,0.0020005,96209.0,96208.0,0.10415732]
[1735228256513,0.0020005,96209.0,96208.0,0.10519663]
[1735228256690,0.0020005,96209.0,96208.0,0.10415732]
[1735228256897,5e-07,96209.0,96208.0,0.10415732]
[1735228258036,0.0003925,96209.0,96208.0,0.000171]
[1735228259669,5e-07,96209.0,96208.0,0.000171]
[1735228261438,0.0003925,96209.0,96208.0,0.000171]
[1735228263915,0.0774925,96209.0,96208.0,0.000171]
[1735228264322,0.18921585,96209.0,96208.0,0.000171]
[1735228264749,0.000392,96198.0,96181.0,0.207941]
[1735228264979,0.274892,96198.0,96177.0,0.09198782]
[1735228265185,0.374892,96198.0,96177.0,0.09198782]
[1735228265394,0.124892,96178.0,96177.0,0.09198782]
[1735228265822,0.000392,96169.0,96168.0,0.207967]
[1735228266025,0.000392,96164.0,96163.0,0.02077279]
[1735228266229,0.207952,96176.0,96147.0,0.09198782]
[1735228266230,0.000392,96151.0,96147.0,0.09198782]
[1735228266454,0.000392,96151.0,96148.0,0.31199832]
[1735228266638,0.000392,96151.0,96148.0,0.52001032]
[1735228266856,0.000392,96159.0,96150.0,0.208008]
[1735228267078,0.000392,96165.0,96164.0,0.207978]
[1735228267290,0.000392,96165.0,96164.0,0.31196432]
[1735228268685,0.000392,96165.0,96164.0,0.001]
[1735228269128,0.000392,96165.0,96164.0,0.208978]
[1735228269509,0.000392,96165.0,96164.0,0.212978]
[1735228269946,0.000392,96165.0,96164.0,0.211978]
[1735228270269,0.000392,96165.0,96164.0,0.216978]
[1735228270547,0.000392,96165.0,96164.0,0.208978]
[1735228270686,0.000392,96165.0,96164.0,0.207978]
[1735228271347,0.15,96177.0,96152.0,0.208003]
[1735228271348,0.000392,96153.0,96152.0,0.208003]
[1735228271551,0.000392,96153.0,96147.0,0.20852898]
[1735228271552,0.000392,96148.0,96147.0,0.00051498]
[1735228272709,0.0492,96150.0,96147.0,0.00051498]
[1735228272710,0.132,96163.0,96147.0,0.1045013]
[1735228272930,0.000392,96157.0,96156.0,0.207994]
[1735228273381,0.000392,96157.0,96154.0,0.207999]
[1735228273780,0.000392,96150.0,96149.0,0.20801]
[1735228274030,0.000392,96148.0,96147.0,0.00951498]
[1735228274212,0.000392,96152.0,96151.0,0.208006]
[1735228274413,0.132,96163.0,96151.0,0.208006]
[1735228274414,0.000392,96156.0,96151.0,0.10398632]
[1735228274613,0.000392,96158.0,96155.0,0.207997]
[1735228274906,0.000392,96158.0,96157.0,0.207993]
[1735228275108,0.000392,96158.0,96157.0,0.31197932]
[1735228275340,0.0087112,96158.0,96157.0,0.31197932]
[1735228275548,0.0087112,96158.0,96157.0,0.207993]
[1735228275785,0.000392,96156.0,96155.0,0.207997]
[1735228276003,0.000392,96156.0,96155.0,0.31198332]
[1735228276589,0.083192,96163.0,96162.0,0.207982]
[1735228276931,0.000392,96161.0,96160.0,0.207986]
[1735228278261,0.000392,96161.0,96160.0,0.209986]
[1735228278467,0.000392,96161.0,96160.0,0.002]
[1735228279305,0.100392,96146.0,96117.0,0.208078]
[1735228279459,0.100392,96146.0,96111.0,0.2082632]
[1735228279460,0.000392,96114.0,96111.0,0.0001712]
[1735228279664,0.000392,96112.0,96111.0,0.0001712]
[1735228280322,0.000392,96121.0,96118.0,0.208077]
[1735228280529,0.0828,96135.0,96120.0,0.208073]
[1735228280530,0.000392,96126.0,96120.0,0.208073]
[1735228280752,0.15,96143.0,96129.0,0.416106]
[1735228280753,0.000392,96130.0,96129.0,0.416106]
[1735228280998,0.15,96143.0,96129.0,0.416106]
[1735228280999,0.000392,96132.0,96129.0,0.52009232]
[1735228281212,0.000392,96132.0,96131.0,0.208049]
[1735228281419,0.000392,96132.0,96131.0,0.31203532]
[1735228283384,0.001392,96132.0,96131.0,0.31203532]
[1735228283610,0.001392,96132.0,96120.0,0.00015443]
[1735228283611,0.000392,96121.0,96120.0,0.00015443]
[1735228284190,0.0212374,96121.0,96120.0,0.00015443]
[1735228284514,0.0987374,96121.0,96120.0,0.00015443]
[1735228284894,0.2972374,96121.0,96120.0,0.00015443]
[1735228285604,0.3972374,96121.0,96120.0,0.00015443]
[1735228286364,0.3972374,96121.0,96120.0,0.00315443]
[1735228286572,0.276392,96121.0,96120.0,0.00415443]
[1735228286791,0.276392,96121.0,96120.0,0.00115443]
[1735228286996,0.276392,96121.0,96120.0,0.00015443]
[1735228287203,0.358073,96120.0,96111.0,0.0001712]
[1735228287414,0.000392,96112.0,96111.0,0.00031055]
[1735228287619,0.0362395,96112.0,96111.0,0.00031055]
[1735228289382,0.2861875,96112.0,96111.0,0.00031055]
[1735228289635,0.4646875,96112.0,96111.0,0.00031055]
[1735228292694,0.48100058,96112.0,96111.0,0.00031055]
[1735228295839,0.01765308,96112.0,96111.0,0.00031055]
[1735228296092,0.00134,96112.0,96111.0,0.31238887]
[1735228296941,0.20801,96150.0,96111.0,0.10429687]
[1735228297153,0.00034,96135.0,96131.0,0.208047]
[1735228297360,0.00034,96132.0,96122.0,0.208068]
[1735228297560,0.00034,96130.0,96129.0,0.208052]
[1735228297774,0.00034,96130.0,96129.0,0.31203832]
[1735228298180,0.00034,96135.0,96134.0,0.208042]
[1735228299581,0.00334,96135.0,96134.0,0.208042]
[1735228299785,0.003,96135.0,96134.0,0.208042]
[1735228299986,0.003,96135.0,96134.0,0.31202832]
[1735228300793,0.006,96135.0,96134.0,0.31202832]
[1735228300973,0.003,96135.0,96134.0,0.31202832]
[1735228301274,0.003,96135.0,96134.0,0.31402832]
[1735228301680,0.00034,96156.0,96155.0,0.207997]
[1735228301910,0.00034,96156.0,96155.0,0.31198332]
[1735228302044,0.00034,96156.0,96155.0,0.34318165]
[1735228302247,0.00034,96168.0,96167.0,0.207969]
[1735228302467,0.00034,96168.0,96167.0,0.31195532]
[1735228302873,0.00085466,96168.0,96167.0,0.31195532]
[1735228303077,0.00085466,96168.0,96167.0,0.10398632]
[1735228303280,0.00185466,96168.0,96167.0,0.10398632]
[1735228303854,0.00285466,96168.0,96167.0,0.10398632]
[1735228304230,0.00151466,96168.0,96167.0,0.10398632]
[1735228304432,0.00151466,96168.0,96167.0,0.10502613]
[1735228304638,0.00251466,96168.0,96167.0,0.10502613]
[1735228305248,0.00251466,96168.0,96167.0,0.12802613]
[1735228305827,0.00051466,96168.0,96167.0,0.12802613]
[1735228306035,0.00051466,96168.0,96167.0,0.13402613]
[1735228306436,0.00051466,96168.0,96167.0,0.13302613]
[1735228306890,0.00051466,96168.0,96167.0,0.10502613]
[1735228307096,0.00051466,96168.0,96167.0,0.10398632]
[1735228307301,0.00051466,96168.0,96167.0,0.11002597]
[1735228307709,0.00051466,96168.0,96167.0,0.11102597]
[1735228307917,0.00051466,96168.0,96167.0,0.20947227]
[1735228308160,0.00051466,96168.0,96167.0,0.20843262]
[1735228308352,0.00051466,96168.0,96167.0,0.13298632]
[1735228308561,0.00051466,96168.0,96167.0,0.13402586]
[1735228308673,0.00060026,96168.0,96167.0,0.12902586]
[1735228308900,0.00060026,96168.0,96167.0,0.12702586]
[1735228309099,0.00060026,96168.0,96167.0,0.13302586]
[1735228309298,0.00060026,96168.0,96167.0,0.12902586]
[1735228309719,0.00060026,96168.0,96167.0,0.11302586]
[1735228309924,0.00060026,96168.0,96167.0,0.11198632]
[1735228310164,0.00060026,96168.0,96167.0,0.11702595]
[1735228310459,0.00060026,96168.0,96167.0,0.10802595]
[1735228310661,0.00060026,96168.0,96167.0,0.11302595]
[1735228311503,0.00060026,96168.0,96167.0,0.24401221]
[1735228311657,0.00034,96196.0,96168.0,0.023]
[1735228311912,0.00034,96196.0,96167.0,0.41843264]
[1735228311913,0.00049434,96196.0,96194.0,0.207911]